bitfinex/quotes_BTCUSD_20220202
["timestamp","ask_amount","ask_price","bid_price","bid_amount"]
[1643780766098,0.00558906,38380.0,38376.0,0.19628214]
[1643780766297,0.00685526,38380.0,38376.0,0.19628214]
[1643780767298,0.00558906,38380.0,38376.0,0.19628214]
[1643780767497,0.00685526,38380.0,38376.0,0.19628214]
[1643780768498,0.00558906,38380.0,38376.0,0.19628214]
[1643780768697,0.00685526,38380.0,38376.0,0.19628214]
[1643780769643,0.00558906,38380.0,38376.0,0.19628214]
[1643780769844,0.00685526,38380.0,38376.0,0.19628214]
[1643780770445,0.00685526,38380.0,38377.0,0.350851]
[1643780770645,0.00685526,38380.0,38376.0,0.213481]
[1643780770848,0.00558906,38380.0,38376.0,0.21132211]
[1643780771045,0.00685526,38380.0,38378.0,0.08934327]
[1643780771448,0.00685526,38380.0,38376.0,0.21132211]
[1643780772146,0.00558906,38380.0,38375.0,0.25]
[1643780772347,0.00685526,38380.0,38375.0,0.25]
[1643780773393,0.00558906,38380.0,38375.0,0.25]
[1643780773690,0.00685525,38380.0,38376.0,0.19782393]
[1643780774492,0.00558906,38380.0,38376.0,0.19782393]
[1643780774692,0.00685526,38380.0,38376.0,0.19782393]
[1643780775692,0.00558906,38380.0,38376.0,0.28592496]
[1643780775895,0.00685526,38380.0,38376.0,0.28592496]
[1643780776893,0.00558906,38380.0,38376.0,0.28592496]
[1643780777142,0.00685526,38380.0,38376.0,0.28592496]
[1643780777543,0.00685526,38380.0,38376.0,0.32404628]
[1643780777741,0.00685526,38380.0,38376.0,0.28592496]
[1643780778142,0.00558906,38380.0,38376.0,0.28592496]
[1643780778342,0.00685526,38380.0,38376.0,0.28592496]
[1643780779242,0.00558906,38380.0,38376.0,0.28592496]
[1643780779444,0.00685526,38380.0,38376.0,0.28592496]
[1643780780444,0.00558906,38380.0,38376.0,0.19782393]
[1643780780647,0.00685526,38380.0,38376.0,0.19782393]
[1643780781293,0.0012662,38380.0,38376.0,0.19782393]
[1643780781493,0.0012662,38380.0,38377.0,0.350851]
[1643780781694,0.1,38390.0,38378.0,0.27557224]
[1643780781894,0.0012662,38380.0,38379.0,0.03981217]
[1643780782096,0.00506346,38390.0,38380.0,0.58306803]
[1643780782295,0.00506346,38390.0,38383.0,0.29104719]
[1643780782594,0.00506346,38390.0,38387.0,0.31079348]
[1643780782794,0.00506346,38390.0,38383.0,0.03314959]
[1643780782997,0.04622163,38390.0,38381.0,0.1242]
[1643780783296,0.23960048,38389.0,38381.0,0.1242]
[1643780783696,0.23960048,38389.0,38381.0,0.35364565]
[1643780783894,0.1,38390.0,38381.0,0.65221184]
[1643780784093,0.21891185,38391.0,38381.0,0.65221184]
[1643780784094,0.38405485,38391.0,38381.0,0.65221184]
[1643780784297,0.08357238,38386.0,38381.0,0.65221184]
[1643780784555,0.38405485,38391.0,38381.0,0.65221184]
[1643780784556,0.28405485,38391.0,38381.0,0.52801184]
[1643780784748,0.43405485,38391.0,38381.0,0.57092308]
[1643780785349,0.43405485,38391.0,38377.0,0.1126]
[1643780785548,0.065147,38389.0,38377.0,0.11312593]
[1643780785748,0.36891185,38391.0,38377.0,0.11312593]
[1643780785749,0.24806439,38388.0,38377.0,0.11312593]
[1643780786450,0.24806439,38388.0,38377.0,0.36630244]
[1643780786648,0.00126772,38384.0,38377.0,0.65491958]
[1643780786849,0.10104439,38382.0,38377.0,0.65491958]
[1643780787049,0.10104439,38382.0,38377.0,0.54231958]
[1643780787650,0.10104439,38382.0,38377.0,0.54126773]
[1643780787852,0.00126774,38382.0,38377.0,0.54231958]
[1643780788050,0.00126774,38382.0,38378.0,0.400851]
[1643780788794,0.00126774,38382.0,38378.0,0.450851]
[1643780788997,0.10494769,38384.0,38378.0,0.450851]
[1643780789194,0.00126775,38382.0,38378.0,0.1]
[1643780789995,0.00126775,38382.0,38379.0,0.350851]
[1643780790194,0.28101897,38385.0,38379.0,0.350851]
[1643780790394,0.28101897,38385.0,38378.0,0.1]
[1643780790395,0.00126775,38382.0,38378.0,0.1]
[1643780790597,0.00126775,38382.0,38381.0,0.04725468]
[1643780790795,0.00126775,38382.0,38381.0,1.07235685]
[1643780790996,0.00126775,38382.0,38381.0,1.02510217]
[1643780791395,0.01948342,38387.0,38384.0,0.07805088]
[1643780791796,0.01948342,38387.0,38381.0,0.67425117]
[1643780792048,0.01948342,38387.0,38381.0,0.64683027]
[1643780792242,0.01948342,38387.0,38381.0,0.45]
[1643780792744,0.0012677,38386.0,38382.0,0.19737355]
[1643780792943,0.0012677,38386.0,38382.0,0.1971317]
[1643780793143,0.0012677,38386.0,38379.0,0.21110554]
[1643780793343,0.0012677,38386.0,38379.0,0.31110554]
[1643780793744,0.01948342,38387.0,38379.0,0.26110554]
[1643780793944,0.00126772,38384.0,38379.0,0.21110554]
[1643780794744,0.00126772,38384.0,38379.0,0.26110554]
[1643780794943,0.065148,38388.0,38379.0,0.26110554]
[1643780795143,0.00126773,38383.0,38379.0,0.26110554]
[1643780795343,0.00126773,38383.0,38380.0,0.350851]
[1643780795543,0.00126773,38383.0,38381.0,0.19703097]
[1643780795996,0.00126773,38383.0,38379.0,0.21338244]
[1643780796198,0.15506736,38388.0,38380.0,0.350851]
[1643780796398,0.15506736,38388.0,38378.0,0.2226]
[1643780796399,0.00126772,38384.0,38381.0,0.20124179]
[1643780796599,0.00126772,38384.0,38382.0,0.350851]
[1643780796803,0.00126772,38384.0,38383.0,0.26027533]
[1643780797198,0.00126772,38384.0,38383.0,0.400851]
[1643780797497,0.0012677,38385.0,38383.0,0.69861979]
[1643780797697,0.0012677,38385.0,38384.0,0.56258422]
[1643780798598,0.02451668,38389.0,38384.0,0.56258422]
[1643780798798,0.00126769,38386.0,38384.0,0.21173322]
[1643780799406,0.00126769,38386.0,38378.0,0.16885]
[1643780799672,0.07104819,38389.0,38378.0,0.1226]
[1643780799972,0.00126772,38384.0,38378.0,0.1226]
[1643780800274,0.00126772,38384.0,38379.0,0.350851]
[1643780800873,0.10128479,38387.0,38379.0,0.350851]
[1643780801072,0.10128479,38387.0,38378.0,0.29985903]
[1643780801073,0.00126773,38383.0,38378.0,0.29985903]
[1643780801274,0.00126773,38383.0,38379.0,0.350851]
[1643780801674,0.00126773,38383.0,38380.0,0.03757843]
[1643780801977,0.00126773,38383.0,38381.0,0.38476271]
[1643780802174,0.02764863,38389.0,38381.0,0.48476271]
[1643780802374,0.00126773,38383.0,38381.0,0.13391171]
[1643780802575,0.00126773,38383.0,38382.0,0.64835686]
[1643780803399,0.00590119,38389.0,38382.0,0.64835686]
[1643780803601,0.00126772,38384.0,38382.0,0.29750586]
[1643780803799,0.00126772,38384.0,38383.0,0.550851]
[1643780804604,0.00590119,38389.0,38385.0,0.0794259]
[1643780804805,0.00590119,38389.0,38385.0,0.0793075]
[1643780805602,0.00590119,38389.0,38380.0,0.043461]
[1643780806002,0.00716885,38389.0,38379.0,0.06514]
[1643780806202,0.00716885,38389.0,38381.0,0.03614794]
[1643780806804,0.00716885,38389.0,38382.0,0.14412489]
[1643780807052,0.00590119,38389.0,38382.0,0.09844889]
[1643780807249,0.00126768,38387.0,38382.0,0.09844889]
[1643780808147,0.00590119,38389.0,38382.0,0.09844889]
[1643780808448,0.00126769,38386.0,38382.0,0.09844889]
[1643780808847,0.00126769,38386.0,38382.0,0.14844889]
[1643780809048,0.00126769,38386.0,38382.0,0.3250225]
[1643780809246,0.00126769,38386.0,38383.0,0.350851]
[1643780809446,0.00590119,38389.0,38383.0,0.350851]
[1643780809647,0.0012677,38386.0,38382.0,0.18291527]
[1643780810147,0.130285,38395.0,38384.0,0.3]
[1643780810347,0.130285,38395.0,38390.0,0.01825889]
[1643780810548,0.062173,38393.0,38390.0,0.01825889]
[1643780810801,0.30004659,38394.0,38384.0,0.3]
[1643780811000,0.30004659,38394.0,38384.0,0.35]
[1643780811200,0.64796661,38394.0,38384.0,0.35]
[1643780813004,0.64796661,38394.0,38382.0,0.13291527]
[1643780813005,0.64796661,38394.0,38382.0,0.14844889]
[1643780813204,0.64924206,38394.0,38387.0,0.00108326]
[1643780813404,0.062173,38393.0,38387.0,0.00108326]
[1643780813606,0.28346771,38392.0,38387.0,0.00108326]
[1643780814005,0.062173,38391.0,38387.0,0.00108326]
[1643780814207,0.09018086,38388.0,38380.0,0.0384741]
[1643780814406,0.09608265,38388.0,38380.0,0.0384741]
[1643780814648,0.21533064,38387.0,38380.0,0.0384741]
[1643780814849,0.27373064,38387.0,38378.0,0.15925483]
[1643780815052,0.0584,38387.0,38378.0,0.15925483]
[1643780815447,0.0584,38387.0,38381.0,0.00108345]
[1643780815647,0.07807057,38387.0,38381.0,0.00108345]
[1643780816048,0.0584,38387.0,38381.0,0.00108345]
[1643780816447,0.0584,38387.0,38378.0,0.20925483]
[1643780816650,0.0584,38387.0,38382.0,0.0010834]
[1643780816850,0.19657478,38386.0,38382.0,0.0010834]
[1643780817249,0.29690654,38385.0,38382.0,0.0010834]
[1643780817653,0.29690654,38385.0,38378.0,0.20925483]
[1643780817852,0.29690654,38385.0,38382.0,0.00108342]
[1643780818903,0.26172378,38386.0,38378.0,0.20925483]
[1643780819203,0.065149,38386.0,38382.0,0.00108342]
[1643780820204,0.065149,38386.0,38378.0,0.15925483]
[1643780820402,0.065149,38386.0,38382.0,0.0010834]
[1643780821403,0.065149,38386.0,38378.0,0.15925483]
[1643780821702,0.065149,38386.0,38382.0,0.0010834]
[1643780822553,0.065149,38386.0,38378.0,0.15925483]
[1643780822756,0.065149,38386.0,38382.0,0.0010834]
[1643780823754,0.065149,38386.0,38378.0,0.15925483]
[1643780823957,0.065149,38386.0,38382.0,0.0010834]
[1643780824958,0.065149,38386.0,38378.0,0.15925483]
[1643780825161,0.065149,38386.0,38382.0,0.0010834]
[1643780826100,0.065149,38386.0,38378.0,0.1226]
[1643780826299,0.065149,38386.0,38382.0,0.0010834]
[1643780827303,0.065149,38386.0,38378.0,0.1226]
[1643780827501,0.065149,38386.0,38382.0,0.0010834]
[1643780828601,0.065149,38386.0,38378.0,0.1226]
[1643780828804,0.065149,38386.0,38382.0,0.0010834]
[1643780829657,0.10012041,38388.0,38378.0,0.1226]
[1643780829856,0.10012041,38388.0,38382.0,0.0010834]
[1643780830857,0.10012041,38388.0,38378.0,0.1226]
[1643780831056,0.10012041,38388.0,38383.0,0.00108337]
[1643780832157,0.10012041,38388.0,38378.0,0.1226]
[1643780832355,0.10012041,38388.0,38380.0,0.00260732]
[1643780832555,0.10012041,38388.0,38378.0,0.12251284]
[1643780832757,0.10012041,38388.0,38379.0,0.1626004]
[1643780832957,0.00590179,38388.0,38379.0,0.1626004]
[1643780834008,0.00590179,38388.0,38383.0,0.09186376]
[1643780834408,0.00590179,38388.0,38378.0,0.32852999]
[1643780834610,0.00590179,38388.0,38379.0,0.350851]
[1643780834808,0.00590179,38388.0,38382.0,0.00054035]
[1643780835810,0.00590179,38388.0,38379.0,0.03713889]
[1643780836010,0.00590179,38388.0,38378.0,0.12251284]
[1643780836011,0.00590179,38388.0,38382.0,0.00107799]
[1643780837063,0.00590179,38388.0,38379.0,0.08584916]
[1643780837253,0.00590179,38388.0,38382.0,0.00107799]
[1643780838154,0.02782033,38388.0,38379.0,0.08584916]
[1643780838356,0.02782033,38388.0,38382.0,0.00107799]
[1643780839354,0.02782033,38388.0,38379.0,0.08584916]
[1643780839554,0.02782033,38388.0,38382.0,0.00107799]
[1643780840154,0.04802582,38388.0,38382.0,0.00107799]
[1643780840555,0.00590179,38388.0,38379.0,0.08584916]
[1643780840802,0.00590179,38388.0,38382.0,0.00107799]
[1643780841803,0.02503997,38388.0,38379.0,0.13584916]
[1643780842003,0.00590179,38388.0,38382.0,0.00107799]
[1643780843703,0.02658989,38388.0,38382.0,0.00107799]
[1643780844104,0.00590179,38388.0,38379.0,0.13584916]
[1643780844305,0.00590179,38388.0,38382.0,0.00107799]
[1643780844561,0.26911376,38386.0,38382.0,0.00107799]
[1643780844754,0.065149,38386.0,38382.0,0.00107799]
[1643780845354,0.00590179,38388.0,38378.0,0.22676388]
[1643780845554,0.00590179,38388.0,38382.0,0.00107799]
[1643780845753,0.01951608,38387.0,38382.0,0.00107799]
[1643780845954,0.00590179,38388.0,38382.0,0.00107799]
[1643780846554,0.00590179,38388.0,38378.0,0.27676388]
[1643780846855,0.00590179,38388.0,38382.0,0.00107799]
[1643780847457,0.07104454,38388.0,38382.0,0.00107799]
[1643780848058,0.13618754,38388.0,38382.0,0.00107799]
[1643780848306,0.07104479,38388.0,38382.0,0.00107799]
[1643780848506,0.065146,38387.0,38382.0,0.00107799]
[1643780848709,0.31611916,38385.0,38382.0,0.00107799]
[1643780848907,0.31611916,38385.0,38378.0,0.12251284]
[1643780849107,0.31611916,38385.0,38382.0,0.001078]
[1643780850108,0.38126616,38385.0,38378.0,0.12251284]
[1643780850308,0.39951955,38385.0,38382.0,0.001078]
[1643780850910,0.08340039,38385.0,38382.0,0.001078]
[1643780851313,0.08340039,38385.0,38378.0,0.17251284]
[1643780851511,0.08340039,38385.0,38382.0,0.001078]
[1643780852156,0.065147,38385.0,38382.0,0.001078]
[1643780852557,0.065147,38385.0,38378.0,0.17251284]
[1643780852757,0.065147,38385.0,38382.0,0.001078]
[1643780853558,0.065147,38384.0,38382.0,0.001078]
[1643780853759,0.065147,38384.0,38378.0,0.05]
[1643780853960,0.065147,38384.0,38382.0,0.001078]
[1643780853961,0.130294,38384.0,38382.0,0.001078]
[1643780854959,0.065147,38385.0,38377.0,0.34658645]
[1643780855159,0.19542854,38387.0,38381.0,0.00107801]
[1643780855806,0.13028554,38387.0,38381.0,0.00107801]
[1643780856207,0.08497702,38386.0,38377.0,0.34658645]
[1643780856406,0.065145,38384.0,38382.0,0.00107799]
[1643780857409,0.13029,38385.0,38377.0,0.5125802]
[1643780857610,0.06514274,38387.0,38381.0,0.00107801]
[1643780857611,0.13028574,38387.0,38381.0,0.00107801]
[1643780857808,0.01955796,38387.0,38381.0,0.00107801]
[1643780858209,0.07104279,38388.0,38381.0,0.00107801]
[1643780858609,0.07104279,38388.0,38378.0,0.05]
[1643780858909,0.13618379,38388.0,38382.0,0.00107799]
[1643780859114,0.065141,38387.0,38382.0,0.00107799]
[1643780859563,0.2013227,38388.0,38382.0,0.00107799]
[1643780859759,0.02134149,38388.0,38378.0,0.05]
[1643780859960,0.02134149,38388.0,38382.0,0.00107799]
[1643780860158,0.44170762,38389.0,38382.0,0.00107799]
[1643780860960,0.44170762,38389.0,38378.0,0.38010148]
[1643780861260,0.34398233,38389.0,38382.0,0.00107799]
[1643780861958,0.36358619,38389.0,38382.0,0.00107799]
[1643780862157,0.34398233,38389.0,38378.0,0.48232427]
[1643780862359,0.34398233,38389.0,38382.0,0.00107799]
[1643780862658,0.34398233,38389.0,38382.0,0.00099321]
[1643780863306,0.34398233,38389.0,38383.0,0.09291338]
[1643780864108,0.34398233,38389.0,38378.0,0.77005428]
[1643780864410,0.34383913,38389.0,38379.0,0.68095248]
[1643780864609,0.34340953,38389.0,38379.0,0.73095248]
[1643780864808,0.34340953,38389.0,38381.0,0.00107758]
[1643780865708,0.34340953,38389.0,38382.0,0.08638629]
[1643780867856,0.36418366,38389.0,38382.0,0.08638629]
[1643780868058,0.34340953,38389.0,38382.0,0.08638629]
[1643780869257,0.34340953,38389.0,38381.0,0.00107758]
[1643780869459,0.34340953,38389.0,38380.0,0.33010148]
[1643780869661,0.34340953,38389.0,38381.0,0.00107758]
[1643780869959,0.0651423,38388.0,38381.0,0.00107758]
[1643780870660,0.09411224,38386.0,38379.0,0.38010148]
[1643780870908,0.09411224,38386.0,38381.0,0.00107758]
[1643780871207,0.1954303,38388.0,38381.0,0.00107758]
[1643780871409,0.2605743,38388.0,38381.0,0.00107758]
[1643780871808,0.01947471,38386.0,38379.0,0.38010148]
[1643780872008,0.01947471,38386.0,38381.0,0.00107758]
[1643780872212,0.34340953,38389.0,38382.0,0.350851]
[1643780872410,0.34340953,38389.0,38381.0,0.00107758]
[1643780873010,0.34340953,38389.0,38380.0,0.17631209]
[1643780873210,0.34340953,38389.0,38381.0,0.00107758]
[1643780873709,0.19983305,38388.0,38381.0,0.00107758]
[1643780873910,0.00590179,38388.0,38381.0,0.00107758]
[1643780874113,0.00590179,38388.0,38378.0,0.45350148]
[1643780874411,0.00590179,38388.0,38381.0,0.00107758]
[1643780874865,0.065144,38387.0,38381.0,0.00107758]
[1643780875361,0.065144,38387.0,38379.0,0.33010148]
[1643780875561,0.065144,38387.0,38381.0,0.00107758]
[1643780876560,0.065144,38387.0,38379.0,0.33010148]
[1643780876760,0.065144,38387.0,38381.0,0.00107758]
[1643780877260,0.19543094,38387.0,38381.0,0.00107758]
[1643780877862,0.21668982,38387.0,38378.0,0.45350148]
[1643780878062,0.15154488,38387.0,38381.0,0.00107758]
[1643780878706,0.47368753,38389.0,38381.0,0.00107758]
[1643780878905,0.1171,38392.0,38380.0,0.33010148]
[1643780879105,0.21510512,38391.0,38381.0,0.00053906]
[1643780880008,0.28024112,38391.0,38381.0,0.00053906]
[1643780880207,0.4047342,38390.0,38380.0,0.33010148]
[1643780880406,0.40600852,38390.0,38381.0,0.00107758]
[1643780881107,0.065138,38389.0,38381.0,0.00107758]
[1643780881307,0.065138,38389.0,38380.0,0.33010148]
[1643780881509,0.065138,38389.0,38381.0,0.00107758]
[1643780882159,0.130276,38389.0,38381.0,0.00107758]
[1643780882562,0.130276,38389.0,38379.0,0.33010148]
[1643780882759,0.130276,38389.0,38381.0,0.00107758]
[1643780883760,0.130276,38389.0,38379.0,0.33010148]
[1643780883959,0.130276,38389.0,38381.0,0.00107758]
[1643780884959,0.130276,38389.0,38379.0,0.39523948]
[1643780885163,0.130276,38389.0,38381.0,0.00107758]
[1643780886009,0.065138,38389.0,38385.0,0.08676372]
[1643780886811,0.32022487,38390.0,38381.0,0.00107758]
[1643780887214,0.32022487,38390.0,38382.0,0.065136]
[1643780887414,0.31895057,38390.0,38382.0,0.065136]
[1643780887615,0.32022488,38390.0,38382.0,0.065136]
[1643780887817,0.32022488,38390.0,38383.0,0.07667959]
[1643780888616,0.31895057,38390.0,38383.0,0.07667959]
[1643780888817,0.3202249,38390.0,38383.0,0.07667959]
[1643780889869,0.31895057,38390.0,38383.0,0.07667959]
[1643780890073,0.065135,38389.0,38383.0,0.07667959]
[1643780890471,0.065135,38389.0,38384.0,0.350851]
[1643780890669,0.065135,38389.0,38386.0,0.23343071]
[1643780892874,0.06640935,38390.0,38386.0,0.23343071]
[1643780893316,0.065135,38390.0,38386.0,0.23343071]
[1643780893517,0.00127436,38390.0,38386.0,0.23343071]
[1643780893915,0.00127436,38390.0,38387.0,0.350851]
[1643780894518,0.065129,38393.0,38387.0,0.350851]
[1643780894718,0.00127436,38390.0,38386.0,0.23343071]
[1643780895821,3.25448925,38397.0,38389.0,0.26118106]
[1643780896020,0.00127436,38390.0,38389.0,0.26109378]
[1643780896420,0.00127436,38390.0,38389.0,0.46109378]
[1643780896620,0.00127436,38390.0,38389.0,0.81194478]
[1643780897061,0.065128,38394.0,38389.0,0.81194478]
[1643780897257,0.00127435,38391.0,38389.0,0.46109378]
[1643780897557,0.00127435,38391.0,38390.0,0.350851]
[1643780897956,0.00127435,38391.0,38387.0,0.29515729]
[1643780898157,0.065128,38394.0,38388.0,0.350851]
[1643780898360,0.065128,38394.0,38387.0,0.29515729]
[1643780898361,0.00127433,38392.0,38387.0,0.29515729]
[1643780898558,0.00127433,38392.0,38388.0,0.350851]
[1643780898959,0.00127433,38392.0,38389.0,0.27928278]
[1643780899359,0.065128,38394.0,38389.0,0.27928278]
[1643780899559,0.00127433,38392.0,38389.0,0.27928278]
[1643780899758,0.00127433,38392.0,38390.0,0.350851]
[1643780900158,0.00127433,38392.0,38386.0,0.23343071]
[1643780900558,0.06505708,38394.0,38387.0,0.350851]
[1643780900808,0.00127436,38391.0,38386.0,0.28343071]
[1643780901011,0.00127436,38391.0,38387.0,0.350851]
[1643780901209,0.00127436,38391.0,38387.0,0.61817284]
[1643780901811,0.065125,38396.0,38387.0,0.61817284]
[1643780902011,0.00127436,38391.0,38387.0,0.61817284]
[1643780902311,0.00127436,38391.0,38387.0,0.68329684]
[1643780902911,0.065125,38396.0,38387.0,0.68329684]
[1643780903113,0.00127436,38391.0,38387.0,0.68329684]
[1643780903712,0.00127436,38391.0,38387.0,0.67987928]
[1643780904112,0.065125,38396.0,38387.0,0.67987928]
[1643780904313,0.639526,38397.0,38387.0,0.71999439]
[1643780904569,0.00127436,38391.0,38387.0,0.76999439]
[1643780904765,0.00127436,38391.0,38390.0,0.52207646]
[1643780904962,0.00127436,38391.0,38390.0,0.87292746]
[1643780905363,0.29084121,38398.0,38390.0,0.87292746]
[1643780905563,0.00127433,38392.0,38391.0,0.350736]
[1643780906464,0.00127433,38392.0,38390.0,0.350736]
[1643780906662,0.07573609,38398.0,38390.0,0.350736]
[1643780906863,0.07573609,38398.0,38389.0,0.065121]
[1643780906864,0.07573609,38398.0,38393.0,0.25931817]
[1643780907163,0.13534052,38399.0,38393.0,0.25931817]
[1643780907363,0.13534052,38399.0,38390.0,0.06512]
[1643780907563,0.13534052,38399.0,38388.0,0.38862298]
[1643780907763,0.130244,38399.0,38388.0,0.15]
[1643780907963,0.00127429,38395.0,38388.0,0.38641321]
[1643780908163,0.00127429,38395.0,38391.0,0.32076063]
[1643780908417,0.00127429,38395.0,38392.0,0.69686308]
[1643780908719,0.00127429,38395.0,38392.0,0.93671099]
[1643780908916,0.1205,38404.0,38392.0,0.93671099]
[1643780909117,0.1205,38404.0,38393.0,0.450736]
[1643780909316,0.1205,38404.0,38394.0,0.70663968]
[1643780909317,0.00127429,38395.0,38394.0,0.70663968]
[1643780909518,0.00127429,38395.0,38394.0,1.12248768]
[1643780909716,0.00127429,38395.0,38394.0,1.27248768]
[1643780910316,0.0058995,38402.0,38395.0,0.05]
[1643780910517,0.00127428,38396.0,38395.0,0.05]
[1643780910716,0.00127428,38396.0,38395.0,0.950736]
[1643780911324,0.07511544,38404.0,38395.0,0.950736]
[1643780911518,0.07511544,38404.0,38398.0,0.30971449]
[1643780911718,0.00509629,38403.0,38398.0,0.30971449]
[1643780912560,0.07511544,38404.0,38399.0,0.24068241]
[1643780912759,0.00127419,38402.0,38399.0,0.24068241]
[1643780912959,0.00127419,38402.0,38398.0,0.30971449]
[1643780913658,0.00127419,38402.0,38398.0,0.35971449]
[1643780913860,0.13022487,38406.0,38396.0,0.1235]
[1643780913861,0.07972991,38403.0,38399.0,0.350736]
[1643780914058,0.0012742,38402.0,38396.0,0.1235]
[1643780914261,0.0012742,38402.0,38394.0,0.25663968]
[1643780914459,0.25652375,38402.0,38394.0,0.48518346]
[1643780914959,0.25652375,38402.0,38391.0,0.1202]
[1643780914960,0.08989278,38392.0,38391.0,0.1202]
[1643780915161,0.08989278,38392.0,38391.0,0.350736]
[1643780915361,0.08989278,38392.0,38385.0,1.0764]
[1643780915561,0.065129,38396.0,38386.0,0.400736]
[1643780915809,0.26152623,38396.0,38388.0,0.28468619]
[1643780916010,0.065129,38396.0,38393.0,0.27591686]
[1643780916412,0.00127431,38394.0,38393.0,0.27591686]
[1643780917409,0.14819022,38396.0,38393.0,0.27591686]
[1643780917610,0.00127429,38395.0,38391.0,0.00362053]
[1643780918010,0.00127429,38395.0,38392.0,0.350736]
[1643780918211,0.00127429,38395.0,38394.0,0.2273048]
[1643780918611,0.08306122,38396.0,38394.0,0.49125077]
[1643780918812,0.0843355,38396.0,38394.0,0.49125077]
[1643780919669,0.0843355,38396.0,38394.0,0.26394597]
[1643780919870,0.08306122,38396.0,38394.0,0.26394597]
[1643780921071,0.1215,38401.0,38394.0,0.26394597]
[1643780921272,0.00127427,38397.0,38394.0,0.26394597]
[1643780922272,0.13024,38401.0,38394.0,0.26394597]
[1643780922473,0.00127426,38397.0,38394.0,0.26394597]
[1643780923509,0.09103914,38398.0,38394.0,0.26394597]
[1643780923709,0.00127426,38397.0,38394.0,0.26394597]
[1643780924710,0.09103914,38398.0,38394.0,0.26394597]
[1643780924908,0.00127426,38397.0,38394.0,0.26394597]
[1643780925809,0.06512,38401.0,38394.0,0.26394597]
[1643780926011,0.00127426,38397.0,38394.0,0.26394597]
[1643780927160,0.06512,38401.0,38394.0,0.26394597]
[1643780927362,0.00127426,38397.0,38394.0,0.26394597]
[1643780927560,0.00127426,38397.0,38395.0,0.350736]
[1643780927860,0.00127426,38397.0,38395.0,0.423126]
[1643780928259,0.0710153,38403.0,38396.0,0.09004381]
[1643780928461,0.00509626,38404.0,38399.0,0.32769113]
[1643780928861,0.00509626,38404.0,38400.0,0.350736]
[1643780929263,0.00509626,38404.0,38403.0,0.27075735]
[1643780929464,0.647808,38408.0,38403.0,0.27075735]
[1643780929465,0.065108,38408.0,38403.0,0.27075735]
[1643780929664,0.00127417,38404.0,38403.0,0.27075735]
[1643780929961,0.00127417,38404.0,38402.0,0.08203795]
[1643780930563,0.00509593,38410.0,38403.0,0.350736]
[1643780930564,0.065104,38410.0,38403.0,0.350736]
[1643780930810,0.00127416,38405.0,38402.0,0.08203795]
[1643780931010,0.00127416,38405.0,38403.0,0.350736]
[1643780931413,0.00127416,38405.0,38404.0,0.25530712]
[1643780931609,0.00127416,38405.0,38399.0,0.32769113]
[1643780931809,0.065106,38409.0,38400.0,0.350736]
[1643780932210,0.00127417,38404.0,38399.0,0.32769113]
[1643780932411,0.00127417,38404.0,38397.0,0.065106]
[1643780932614,0.00127417,38404.0,38391.0,0.51043953]
[1643780932615,0.15559339,38403.0,38391.0,0.51043953]
[1643780932817,0.21510512,38402.0,38391.0,0.00362053]
[1643780933116,0.853708,38401.0,38391.0,0.00362053]
[1643780933310,0.00127425,38398.0,38391.0,0.00362053]
[1643780933509,0.124008,38397.0,38391.0,0.00362053]
[1643780933710,0.224008,38397.0,38391.0,0.00362053]
[1643780933911,0.15319587,38394.0,38391.0,0.00362053]
[1643780934111,0.123535,38393.0,38391.0,0.00362053]
[1643780935161,0.19567513,38392.0,38391.0,0.00362053]
[1643780935361,0.2532953,38392.0,38391.0,0.00362053]
[1643780935564,0.3189033,38392.0,38391.0,0.00362053]
[1643780936463,0.124008,38392.0,38391.0,0.00362053]
[1643780937665,0.34187831,38392.0,38391.0,0.00362053]
[1643780938067,0.34187831,38392.0,38382.0,0.05]
[1643780938068,0.065137,38390.0,38382.0,0.05]
[1643780938312,0.33911312,38389.0,38381.0,0.00107758]
[1643780938511,0.43911312,38389.0,38381.0,0.00107758]
[1643780938709,0.03513923,38386.0,38381.0,0.00107758]
[1643780938910,0.124008,38385.0,38381.0,0.00107758]
[1643780939111,0.124008,38385.0,38380.0,0.21597456]
[1643780939310,0.18915814,38385.0,38381.0,0.00107758]
[1643780939714,0.25430814,38385.0,38381.0,0.00107758]
[1643780939913,0.065151,38384.0,38381.0,0.00107758]
[1643780940313,0.065151,38384.0,38377.0,0.56916629]
[1643780940314,0.32035066,38383.0,38377.0,0.56916629]
[1643780940513,0.25474266,38383.0,38381.0,0.0010776]
[1643780941019,0.19767762,38382.0,38381.0,0.0010776]
[1643780941218,0.25607762,38382.0,38381.0,0.0010776]
[1643780941416,0.0584,38382.0,38377.0,0.64546078]
[1643780941615,0.0584,38382.0,38380.0,0.00107763]
[1643780941816,0.21053304,38381.0,38380.0,0.00107763]
[1643780942094,0.33454104,38381.0,38380.0,0.00107763]
[1643780942482,0.5874236,38381.0,38380.0,0.00107763]
[1643780942682,0.5874236,38381.0,38375.0,0.002]
[1643780942884,0.08507587,38380.0,38379.0,0.00107766]
[1643780943084,0.34374365,38380.0,38379.0,0.00107766]
[1643780943785,0.34374365,38380.0,38375.0,0.002]
[1643780944086,0.25866778,38380.0,38378.0,0.00107769]
[1643780944285,0.19655239,38379.0,38378.0,0.00107769]
[1643780944486,0.25495239,38379.0,38378.0,0.00107769]
[1643780944685,0.0584,38379.0,38378.0,0.00107769]
[1643780945086,0.0584,38379.0,38375.0,0.002]
[1643780945285,0.0584,38379.0,38377.0,0.00107772]
[1643780945584,0.0584,38379.0,38375.0,0.002]
[1643780945585,0.0584,38379.0,38374.0,0.29112893]
[1643780947521,0.22169399,38381.0,38374.0,0.29112893]
[1643780947716,0.13442406,38383.0,38374.0,0.29112893]
[1643780947919,0.209925,38386.0,38380.0,0.32172304]
[1643780948119,0.21951925,38389.0,38380.0,0.32172304]
[1643780948718,0.21951925,38389.0,38382.0,0.24685397]
[1643780949119,0.21951925,38389.0,38380.0,0.32172304]
[1643780950166,0.00127318,38386.0,38380.0,0.32172304]
[1643780950564,0.00127318,38386.0,38382.0,0.27383574]
[1643780950964,0.00127318,38386.0,38380.0,0.32172304]
[1643780951164,0.1982719,38387.0,38380.0,0.32172304]
[1643780951377,0.00127318,38386.0,38380.0,0.32172304]
[1643780951863,0.00127318,38386.0,38382.0,0.26600361]
[1643780952264,0.1982719,38387.0,38380.0,0.32172304]
[1643780952464,0.00127318,38386.0,38375.0,0.00107237]
[1643780953164,0.00127318,38386.0,38380.0,0.20495841]
[1643780953421,0.2634179,38387.0,38380.0,0.20495841]
[1643780953619,0.00127319,38385.0,38379.0,0.33580746]
[1643780954621,0.2634179,38387.0,38379.0,0.33580746]
[1643780954820,0.0012732,38384.0,38379.0,0.33580746]
[1643780955019,0.0012732,38384.0,38379.0,0.59121478]
[1643780955820,0.3134179,38387.0,38379.0,0.59121478]